fUSD/lending_fUSD_20260208
["ID","MTS","AMOUNT","RATE_DAILY","PERIOD"]
[404768409,1770520237961,-500.0,0.00013598,2]
[404768410,1770520237971,-500.0,0.00013598,2]
[404768411,1770520237980,-500.0,0.00013598,2]
[404768412,1770520237990,-500.0,0.00013598,2]
[404768413,1770520237999,-500.0,0.00013598,2]
[404768414,1770520238008,-500.0,0.00013598,2]
[404768415,1770520238018,-500.0,0.00013598,2]
[404768416,1770520238028,-500.0,0.00013598,2]
[404768417,1770520238037,-500.0,0.00013598,2]
[404768418,1770520238047,-500.0,0.00013598,2]
[404768419,1770520238056,-500.0,0.00013598,2]
[404768420,1770520238065,-500.0,0.00013598,2]
[404768421,1770520238075,-500.0,0.00013598,2]
[404768422,1770520238084,-500.0,0.00013598,2]
[404768423,1770520238094,-526.94666981,0.00013598,2]
[404768424,1770520238103,-500.0,0.00013598,2]
[404768425,1770520238112,-500.0,0.00013598,2]
[404768426,1770520238122,-500.0,0.00013598,2]
[404768427,1770520238132,-500.0,0.00013598,2]
[404768428,1770520238141,-500.0,0.00013598,2]
[404768429,1770520238154,-500.0,0.00013598,2]
[404768430,1770520238164,-500.0,0.00013598,2]
[404768431,1770520238173,-500.0,0.00013598,2]
[404768432,1770520238183,-500.0,0.00013598,2]
[404768433,1770520238195,-500.0,0.00013598,2]
[404768434,1770520238204,-500.0,0.00013598,2]
[404768435,1770520238214,-500.0,0.00013598,2]
[404768436,1770520238224,-500.0,0.00013598,2]
[404768437,1770520238234,-500.0,0.00013598,2]
[404768438,1770520238243,-500.0,0.00013598,2]
[404768439,1770520238253,-500.0,0.00013598,2]
[404768440,1770520238263,-500.0,0.00013598,2]
[404768441,1770520238272,-500.0,0.00013598,2]
[404768442,1770520238282,-500.0,0.00013598,2]
[404768443,1770520238291,-500.0,0.00013598,2]
[404768444,1770520238300,-595.71530887,0.00013598,2]
[404768445,1770520238309,-595.71530887,0.00013598,2]
[404768446,1770520238318,-595.71530887,0.00013598,2]
[404768447,1770520238327,-595.71530887,0.00013598,2]
[404768448,1770520238336,-595.71530887,0.00013598,2]
[404768449,1770520238345,-595.71530887,0.00013598,2]
[404768450,1770520238355,-595.71530887,0.00013598,2]
[404768451,1770520238364,-595.71530887,0.00013598,2]
[404768452,1770520238374,-595.71530887,0.00013598,2]
[404768453,1770520238383,-595.71530887,0.00013598,2]
[404768454,1770520238393,-595.71530887,0.00013598,2]
[404768455,1770520238403,-595.71530887,0.00013598,2]
[404768456,1770520238412,-595.71530887,0.00013598,2]
[404768457,1770520238422,-595.71530887,0.00013598,2]
[404768458,1770520238431,-595.71530887,0.00013598,2]
[404768459,1770520238441,-595.71530887,0.00013598,2]
[404768460,1770520238451,-595.71530887,0.00013598,2]
[404768461,1770520238461,-595.71530887,0.00013598,2]
[404768462,1770520238471,-595.71530887,0.00013598,2]
[404768463,1770520238480,-595.71530887,0.00013598,2]
[404768464,1770520238490,-595.71530887,0.00013598,2]
[404768465,1770520238499,-595.71530887,0.00013598,2]
[404768466,1770520238508,-595.71530887,0.00013598,2]
[404768467,1770520238518,-595.71530887,0.00013598,2]
[404768468,1770520238527,-595.71530887,0.00013598,2]
[404768469,1770520238537,-595.71530887,0.00013598,2]
[404768470,1770520238546,-595.71530887,0.00013598,2]
[404768471,1770520238556,-595.71530887,0.00013598,2]
[404768472,1770520238565,-595.71530887,0.00013598,2]
[404768473,1770520238575,-595.71530887,0.00013598,2]
[404768474,1770520238584,-595.71530887,0.00013598,2]
[404768475,1770520238593,-595.71530887,0.00013598,2]
[404768476,1770520238604,-595.71530887,0.00013598,2]
[404768477,1770520238614,-595.71530887,0.00013598,2]
[404768478,1770520238632,-595.71530887,0.00013598,2]
[404768479,1770520238643,-595.71530887,0.00013598,2]
[404768480,1770520238652,-595.71530889,0.00013598,2]
[404768481,1770520238662,-595.71530889,0.00013598,2]
[404768482,1770520238671,-595.71530889,0.00013598,2]
[404768483,1770520238681,-595.71530889,0.00013598,2]
[404768484,1770520238690,-595.71530889,0.00013598,2]
[404768485,1770520238700,-595.71530889,0.00013598,2]
[404768486,1770520238710,-595.71530889,0.00013598,2]
[404768487,1770520238720,-595.71530889,0.00013598,2]
[404768488,1770520238729,-595.71530887,0.00013598,2]
[404768489,1770520238738,-108033.67883134,0.00013599,2]
[404768492,1770520239990,-63011.6718968,0.00013599,2]
[404768493,1770520240155,-3328954.64927186,0.00013599,2]
[404768494,1770520240166,-500.0,0.00013698,2]
[404768495,1770520240178,-486.17540602,0.00013698,2]
[404768496,1770520240191,-1815.18,0.00013699,2]
[404768497,1770520240201,-385.0,0.00013699,2]
[404768498,1770520240212,-320.83,0.00013699,2]
[404768499,1770520240224,-267.36,0.00013699,2]
[404768500,1770520240234,-222.8,0.00013699,2]
[404768501,1770520240246,-185.66,0.00013699,2]
[404768502,1770520240257,-154.72,0.00013699,2]
[404768503,1770520240267,-773.63,0.00013699,2]
[404768504,1770520240277,-666.0,0.0001387,2]
[404768505,1770520240288,-34773.90269024,0.00013871,2]
[404768506,1770520240300,-7938.0,0.00013917,2]
[404768507,1770520240311,-150.0,0.00013917,2]
[404768508,1770520240323,-7938.0,0.00013972,2]
[404768509,1770520240334,-150.0,0.00013972,2]
[404768510,1770520240347,-2384.0988,0.00013991,2]
[404768511,1770520240357,-2500.0,0.00013991,2]
[404768512,1770520240369,-4657.83024455,0.00013992,2]
[404768513,1770520240378,-177.02396102,0.00013992,2]
[404768514,1770520240388,-166.66,0.00013994,2]
[404768515,1770520240399,-2615.41612631,0.00014,2]
[404768516,1770520240411,-7938.0,0.00014027,2]
[404768517,1770520240421,-200.0,0.00014027,2]
[404768518,1770520240433,-9576.0,0.00014055,2]
[404768519,1770520240444,-7938.0,0.00014081,2]
[404768520,1770520240454,-500.0,0.0001409,2]
[404768521,1770520240464,-500.0,0.0001409,2]
[404768522,1770520240475,-500.0,0.0001409,2]
[404768523,1770520240486,-500.0,0.0001409,2]
[404768524,1770520240497,-500.0,0.0001409,2]
[404768525,1770520240507,-500.0,0.0001409,2]
[404768526,1770520240517,-500.0,0.0001409,2]
[404768527,1770520240527,-500.0,0.0001409,2]
[404768528,1770520240538,-500.0,0.0001409,2]
[404768529,1770520240548,-500.0,0.0001409,2]
[404768530,1770520240558,-500.0,0.0001409,2]
[404768531,1770520240567,-500.0,0.0001409,2]
[404768532,1770520240577,-500.0,0.0001409,2]
[404768533,1770520240587,-500.0,0.0001409,2]
[404768534,1770520240597,-500.0,0.00014091,2]
[404768535,1770520240607,-666.0,0.00014091,2]
[404768536,1770520240625,-61400.633,0.00014092,2]
[404768537,1770520240634,-194.039,0.00014117,2]
[404768538,1770520240644,-1920.737,0.00014117,2]
[404768539,1770520240654,-7938.0,0.00014136,2]
[404768540,1770520240664,-151.0,0.00014184,2]
[404768541,1770520240673,-151.0,0.00014184,2]
[404768542,1770520240684,-151.0,0.00014184,2]
[404768543,1770520240694,-151.0,0.00014184,2]
[404768544,1770520240704,-151.0,0.00014184,2]
[404768545,1770520240714,-151.0,0.00014184,2]
[404768546,1770520240723,-151.0,0.00014184,2]
[404768547,1770520240733,-152.15259723,0.00014184,2]
[404768548,1770520240743,-684.29765978,0.0001419,2]
[404768549,1770520240753,-7938.0,0.00014191,2]
[404768550,1770520240763,-500.0,0.00014191,2]
[404768551,1770520240772,-500.0,0.00014191,2]
[404768552,1770520240783,-500.0,0.00014191,2]
[404768553,1770520240792,-500.0,0.00014191,2]
[404768554,1770520240802,-500.0,0.00014191,2]
[404768555,1770520240812,-500.0,0.00014191,2]
[404768556,1770520240823,-158.68821599,0.00014191,2]
[404768557,1770520240832,-500.0,0.00014191,2]
[404768558,1770520240842,-501.30969498,0.00014191,2]
[404768559,1770520240853,-500.0,0.00014191,2]
[404768560,1770520240863,-500.0,0.00014191,2]
[404768561,1770520240875,-500.0,0.00014191,2]
[404768562,1770520240886,-500.0,0.00014191,2]
[404768563,1770520240896,-500.0,0.00014191,2]
[404768564,1770520240906,-419.54042102,0.00014191,2]
[404768565,1770520240915,-519.29278148,0.00014191,2]
[404768566,1770520240926,-500.0,0.00014191,2]
[404768567,1770520240936,-500.0,0.00014191,2]
[404768568,1770520240946,-500.0,0.00014191,2]
[404768569,1770520240957,-500.0,0.00014191,2]
[404768570,1770520240967,-500.0,0.00014191,2]
[404768571,1770520240976,-500.0,0.00014191,2]
[404768572,1770520240986,-500.0,0.00014191,2]
[404768573,1770520240996,-500.0,0.00014191,2]
[404768574,1770520241006,-551.73308967,0.00014191,2]
[404768575,1770520241016,-500.0,0.00014191,2]
[404768576,1770520241027,-500.0,0.00014191,2]
[404768577,1770520241039,-500.0,0.00014191,2]
[404768578,1770520241049,-500.0,0.00014191,2]
[404768579,1770520241060,-500.0,0.00014191,2]
[404768580,1770520241071,-500.0,0.00014191,2]
[404768581,1770520241083,-500.0,0.00014191,2]
[404768582,1770520241094,-500.0,0.00014191,2]
[404768583,1770520241105,-500.0,0.00014191,2]
[404768584,1770520241117,-500.0,0.00014191,2]
[404768585,1770520241128,-500.0,0.00014191,2]
[404768586,1770520241139,-500.0,0.00014191,2]
[404768587,1770520241155,-500.0,0.00014191,2]
[404768588,1770520241166,-406.09210056,0.00014191,2]
[404768589,1770520241177,-500.0,0.00014191,2]
[404768590,1770520241188,-500.0,0.00014191,2]
[404768591,1770520241198,-500.0,0.00014191,2]
[404768592,1770520241208,-500.0,0.00014191,2]
[404768593,1770520241221,-525.5603334,0.00014191,2]
[404768594,1770520241232,-500.0,0.00014191,2]
[404768595,1770520241243,-500.0,0.00014191,2]
[404768596,1770520241252,-500.0,0.00014191,2]
[404768597,1770520241262,-500.0,0.00014191,2]
[404768598,1770520241272,-500.0,0.00014191,2]
[404768599,1770520241281,-500.0,0.00014191,2]
[404768600,1770520241291,-500.0,0.00014191,2]
[404768601,1770520241300,-500.0,0.00014191,2]
[404768602,1770520241310,-320.07780956,0.00014191,2]
[404768603,1770520241320,-500.0,0.00014191,2]
[404768604,1770520241333,-500.0,0.00014191,2]
[404768605,1770520241343,-500.0,0.00014191,2]
[404768606,1770520241354,-500.0,0.00014191,2]
[404768607,1770520241364,-500.0,0.00014191,2]
[404768608,1770520241375,-500.0,0.00014191,2]
[404768609,1770520241385,-500.0,0.00014191,2]
[404768610,1770520241395,-500.0,0.00014191,2]
[404768611,1770520241405,-506.31505276,0.00014191,2]
[404768612,1770520241415,-500.0,0.00014191,2]
[404768613,1770520241424,-554.61994383,0.00014191,2]
[404768614,1770520241434,-500.0,0.00014191,2]
[404768615,1770520241444,-505.49907754,0.00014191,2]
[404768616,1770520241454,-769.54,0.00014191,2]
[404768617,1770520241463,-769.54,0.00014191,2]
[404768618,1770520241474,-769.54,0.00014191,2]
[404768619,1770520241484,-769.54,0.00014191,2]
[404768620,1770520241495,-769.54,0.00014191,2]
[404768621,1770520241506,-769.54,0.00014191,2]
[404768622,1770520241517,-769.54,0.00014191,2]
[404768623,1770520241526,-769.54,0.00014191,2]
[404768624,1770520241536,-769.54,0.00014191,2]
[404768625,1770520241547,-769.54,0.00014191,2]
[404768626,1770520241558,-769.54,0.00014191,2]
[404768627,1770520241571,-769.54,0.00014191,2]
[404768628,1770520241580,-769.54,0.00014191,2]
[404768629,1770520241592,-769.54,0.00014191,2]
[404768630,1770520241603,-765.89,0.00014191,2]
[404768631,1770520241615,-765.89,0.00014191,2]
[404768632,1770520241625,-765.89,0.00014191,2]
[404768633,1770520241637,-765.89,0.00014191,2]
[404768634,1770520241647,-765.89,0.00014191,2]
[404768635,1770520241658,-765.89,0.00014191,2]
[404768636,1770520241670,-765.89,0.00014191,2]
[404768637,1770520241680,-765.89,0.00014191,2]
[404768638,1770520241692,-765.89,0.00014191,2]
[404768639,1770520241702,-765.89,0.00014191,2]
[404768640,1770520241713,-765.89,0.00014191,2]
[404768641,1770520241723,-765.89,0.00014191,2]
[404768642,1770520241732,-765.89,0.00014191,2]
[404768643,1770520241743,-765.89,0.00014191,2]
[404768644,1770520241754,-500.0,0.00014191,2]
[404768645,1770520241765,-500.0,0.00014191,2]
[404768646,1770520241775,-500.0,0.00014191,2]
[404768647,1770520241786,-500.0,0.00014191,2]
[404768648,1770520241797,-500.0,0.00014191,2]
[404768649,1770520241808,-360.03708592,0.00014191,2]
[404768650,1770520241819,-504.90165339,0.00014191,2]
[404768651,1770520241828,-500.0,0.00014191,2]
[404768652,1770520241838,-500.0,0.00014191,2]
[404768653,1770520241848,-500.0,0.00014191,2]
[404768654,1770520241859,-500.0,0.00014191,2]
[404768655,1770520241869,-406.9437856,0.00014191,2]
[404768656,1770520241881,-500.0,0.00014191,2]
[404768657,1770520241891,-659.81,0.00014191,2]
[404768658,1770520241903,-500.0,0.00014191,2]
[404768659,1770520241914,-659.81,0.00014191,2]
[404768660,1770520241926,-500.0,0.00014191,2]
[404768661,1770520241937,-659.81,0.00014191,2]
[404768662,1770520241948,-500.0,0.00014191,2]
[404768663,1770520241959,-659.81,0.00014191,2]
[404768664,1770520241970,-500.0,0.00014191,2]
[404768665,1770520241979,-659.81,0.00014191,2]
[404768666,1770520241991,-509.54537584,0.00014191,2]
[404768667,1770520242002,-659.81,0.00014191,2]
[404768668,1770520242012,-659.81,0.00014191,2]
[404768669,1770520242023,-659.81,0.00014191,2]
[404768670,1770520242034,-659.81,0.00014191,2]
[404768671,1770520242044,-659.81,0.00014191,2]
[404768672,1770520242054,-659.81,0.00014191,2]
[404768673,1770520242064,-659.81,0.00014191,2]
[404768674,1770520242073,-659.81,0.00014191,2]
[404768675,1770520242083,-659.81,0.00014191,2]
[404768676,1770520242093,-500.0,0.00014191,2]
[404768677,1770520242102,-500.0,0.00014191,2]
[404768678,1770520242112,-500.0,0.00014191,2]
[404768679,1770520242122,-500.0,0.00014191,2]
[404768680,1770520242131,-500.0,0.00014191,2]
[404768681,1770520242142,-500.0,0.00014191,2]
[404768682,1770520242155,-500.0,0.00014191,2]
[404768683,1770520242165,-418.53449806,0.00014191,2]
[404768684,1770520242175,-245.54262267,0.00014191,2]
[404768685,1770520242186,-7938.0,0.00014246,2]
[404768686,1770520242196,-7938.0,0.00014301,2]
[404768687,1770520242205,-252.82671144,0.00014352,2]
[404768688,1770520242216,-7938.0,0.00014355,2]
[404768689,1770520242227,-1815.18,0.00014384,2]
[404768690,1770520242237,-1000.0,0.00014392,2]
[404768691,1770520242246,-7938.0,0.0001441,2]
[404768692,1770520242256,-401.51802933,0.00014412,2]
[404768693,1770520242266,-166.66,0.00014442,2]
[404768694,1770520242276,-7938.0,0.00014465,2]
[404768695,1770520242287,-659.81,0.0001449,2]
[404768696,1770520242297,-7938.0,0.0001452,2]
[404768697,1770520242306,-344.58870973,0.0001457,2]
[404768698,1770520242316,-7938.0,0.00014575,2]
[404768699,1770520242326,-769.54,0.0001459,2]
[404768700,1770520242336,-765.89,0.0001459,2]
[404768701,1770520242346,-500.0,0.00014591,2]
[404768702,1770520242357,-500.0,0.00014591,2]
[404768703,1770520242367,-500.0,0.00014591,2]
[404768704,1770520242377,-500.0,0.00014591,2]
[404768705,1770520242387,-500.0,0.00014591,2]
[404768706,1770520242397,-500.0,0.00014591,2]
[404768707,1770520242408,-500.0,0.00014591,2]
[404768709,1770520242418,-500.0,0.00014591,2]
[404768710,1770520242429,-500.0,0.00014591,2]
[404768712,1770520242438,-500.0,0.00014591,2]
[404768714,1770520242448,-500.0,0.00014591,2]
[404768716,1770520242458,-500.0,0.00014591,2]
[404768718,1770520242468,-500.0,0.00014591,2]
[404768720,1770520242477,-500.0,0.00014591,2]
[404768722,1770520242487,-500.0,0.00014591,2]
[404768724,1770520242497,-500.0,0.00014591,2]
[404768726,1770520242508,-463.13258708,0.00014591,2]
[404768728,1770520242518,-500.0,0.00014591,2]
[404768730,1770520242528,-348.97922054,0.00014591,2]
[404768732,1770520242539,-7938.0,0.00014629,2]
[404768733,1770520242550,-250.0,0.00014662,2]
[404768734,1770520242561,-150.15898569,0.00014662,2]
[404768735,1770520242571,-500.0,0.00014662,2]
[404768736,1770520242582,-600.0,0.00014662,2]
[404768737,1770520242592,-600.0,0.00014662,2]
[404768738,1770520242602,-600.0,0.00014662,2]
[404768739,1770520242613,-600.0,0.00014662,2]
[404768740,1770520242624,-600.0,0.00014662,2]
[404768741,1770520242634,-300.0,0.00014662,2]
[404768742,1770520242645,-201.76287934,0.00014662,2]
[404768743,1770520242655,-300.0,0.00014662,2]
[404768744,1770520242667,-194.62509925,0.00014662,2]
[404768745,1770520242677,-5000.0,0.00014662,2]
[404768746,1770520242688,-7938.0,0.00014684,2]
[404768747,1770520242700,-461.40990221,0.00014719,2]
[404768748,1770520242710,-7938.0,0.00014739,2]
[404768749,1770520242721,-500.0,0.00014788,2]
[404768750,1770520242731,-7938.0,0.00014794,2]
[404768751,1770520242742,-7938.0,0.00014849,2]
[404768752,1770520242753,-1389.0,0.00014883,2]
[404768753,1770520242765,-166.66,0.00014889,2]
[404768754,1770520242777,-500.0,0.00014898,2]
[404768755,1770520242788,-155.29496435,0.000149,2]
[404768756,1770520242799,-155.29496433,0.000149,2]
[404768757,1770520242809,-155.29496433,0.000149,2]
[404768758,1770520242820,-7938.0,0.00014903,2]
[404768759,1770520242830,-7938.0,0.00014958,2]
[404768760,1770520242841,-7938.0,0.00015013,2]
[404768761,1770520242851,-7938.0,0.00015068,2]
[404768762,1770520242862,-225.39,0.00015068,2]
[404768763,1770520242873,-1815.18,0.00015068,2]
[404768764,1770520242883,-7938.0,0.00015122,2]
[404768765,1770520242893,-7957.1094741,0.00015177,2]
[404768766,1770520242904,-299.99,0.0001531,2]
[404768767,1770520242914,-9999.99,0.0001531,2]
[404768768,1770520242924,-353.86,0.0001531,2]
[404768769,1770520242935,-150.99,0.0001531,2]
[404768770,1770520242946,-577.29,0.0001531,2]
[404768771,1770520242957,-7028.72,0.0001531,2]
[404768772,1770520242967,-166.66,0.00015336,2]
[404768773,1770520242978,-500.0,0.00015373,2]
[404768774,1770520242988,-260.9728756,0.00015373,2]
[404768775,1770520242999,-1815.18,0.00015753,2]
[404768776,1770520243011,-166.66,0.00015783,2]
[404768777,1770520243023,-225.39,0.00016438,2]
[404768778,1770520243035,-1815.18,0.00016438,2]
[404768779,1770520243046,-500.0,0.00016946,2]
[404768780,1770520243058,-10732.73906839,0.0001697,2]
[404768781,1770520243069,-4657.83024449,0.00017321,2]
[404768782,1770520243082,-153.75,0.00017456,2]
[404768783,1770520243284,-500.0,0.00017808,2]
[404768784,1770520243295,-500.0,0.00017808,2]
[404768786,1770520243306,-500.0,0.00017808,2]
[404768787,1770520243318,-500.0,0.00017808,2]
[404768788,1770520243329,-500.0,0.00017808,2]
[404768789,1770520243339,-500.0,0.00017808,2]
[404768790,1770520243350,-500.0,0.00017808,2]
[404768793,1770520243361,-500.0,0.00017808,2]
[404768794,1770520243371,-500.0,0.00017808,2]
[404768795,1770520243381,-500.0,0.00017808,2]
[404768796,1770520243391,-500.0,0.00017808,2]
[404768797,1770520243401,-500.0,0.00017808,2]
[404768798,1770520243411,-500.0,0.00017808,2]
[404768799,1770520243421,-500.0,0.00017808,2]
[404768800,1770520243431,-500.0,0.00017808,2]
[404768801,1770520243441,-500.0,0.00017808,2]
[404768802,1770520243451,-500.0,0.00017808,2]
[404768803,1770520243461,-500.0,0.00017808,2]
[404768804,1770520243470,-500.0,0.00017808,2]
[404768805,1770520243480,-500.0,0.00017808,2]
[404768806,1770520243490,-500.0,0.00017808,2]
[404768808,1770520243500,-500.0,0.00017808,2]
[404768809,1770520243510,-500.0,0.00017808,2]
[404768810,1770520243520,-255.62320401,0.00017808,2]
[404768811,1770520243531,-500.0,0.00017808,2]
[404768812,1770520243541,-500.0,0.00017808,2]
[404768813,1770520243551,-500.0,0.00017808,2]
[404768814,1770520243561,-500.0,0.00017808,2]
[404768815,1770520243572,-500.0,0.00017808,2]
[404768816,1770520243582,-500.0,0.00017808,2]
[404768817,1770520243591,-500.0,0.00017808,2]
[404768818,1770520243601,-500.0,0.00017808,2]
[404768819,1770520243611,-500.0,0.00017808,2]
[404768820,1770520243622,-500.0,0.00017808,2]
[404768821,1770520243632,-500.0,0.00017808,2]
[404768822,1770520243643,-500.0,0.00017808,2]
[404768823,1770520243653,-500.0,0.00017808,2]
[404768824,1770520243663,-500.0,0.00017808,2]
[404768825,1770520243673,-500.0,0.00017808,2]
[404768826,1770520243684,-500.0,0.00017808,2]
[404768827,1770520243694,-500.0,0.00017808,2]
[404768828,1770520243705,-500.0,0.00017808,2]
[404768829,1770520243715,-620.44668458,0.00017808,2]
[404768830,1770520243725,-620.44668458,0.00017808,2]
[404768831,1770520243736,-620.44668458,0.00017808,2]
[404768832,1770520243746,-620.44668458,0.00017808,2]
[404768833,1770520243757,-620.44668458,0.00017808,2]
[404768834,1770520243767,-620.44668458,0.00017808,2]
[404768835,1770520243778,-620.44668458,0.00017808,2]
[404768836,1770520243789,-620.44668458,0.00017808,2]
[404768837,1770520243799,-620.44668458,0.00017808,2]
[404768838,1770520243809,-620.44668458,0.00017808,2]
[404768839,1770520243820,-620.44668458,0.00017808,2]
[404768840,1770520243830,-620.44668458,0.00017808,2]
[404768841,1770520243840,-620.44668458,0.00017808,2]
[404768842,1770520243851,-620.44668458,0.00017808,2]
[404768843,1770520243861,-620.44668458,0.00017808,2]
[404768844,1770520243872,-620.44668458,0.00017808,2]
[404768845,1770520243883,-620.44668458,0.00017808,2]
[404768846,1770520243893,-620.44668458,0.00017808,2]
[404768847,1770520243903,-620.44668458,0.00017808,2]
[404768848,1770520243914,-620.44668458,0.00017808,2]
[404768849,1770520243924,-620.44668458,0.00017808,2]
[404768850,1770520243934,-620.44668458,0.00017808,2]
[404768851,1770520243944,-620.44668458,0.00017808,2]
[404768852,1770520243954,-620.44668458,0.00017808,2]
[404768853,1770520243964,-620.44668458,0.00017808,2]
[404768854,1770520243973,-620.44668458,0.00017808,2]
[404768855,1770520243983,-620.44668458,0.00017808,2]
[404768856,1770520243992,-620.44668458,0.00017808,2]
[404768857,1770520244002,-620.44668458,0.00017808,2]
[404768858,1770520244013,-620.44668458,0.00017808,2]
[404768859,1770520244023,-620.44668458,0.00017808,2]
[404768860,1770520244032,-620.44668458,0.00017808,2]
[404768861,1770520244041,-620.44668458,0.00017808,2]
[404768862,1770520244050,-620.44668458,0.00017808,2]
[404768863,1770520244061,-620.44668458,0.00017808,2]
[404768864,1770520244071,-620.44668458,0.00017808,2]
[404768865,1770520244083,-620.44668458,0.00017808,2]
[404768866,1770520244094,-620.44668458,0.00017808,2]
[404768867,1770520244104,-620.44668458,0.00017808,2]
[404768868,1770520244114,-620.44668458,0.00017808,2]
[404768869,1770520244124,-620.44668458,0.00017808,2]
[404768870,1770520244135,-620.44668458,0.00017808,2]
[404768871,1770520244145,-620.44668458,0.00017808,2]
[404768872,1770520244159,-620.44668458,0.00017808,2]
[404768873,1770520244169,-620.44668458,0.00017808,2]
[404768874,1770520244181,-620.44668452,0.00017808,2]
[404768875,1770520244192,-620.44668452,0.00017808,2]
[404768876,1770520244205,-620.44668452,0.00017808,2]
[404768877,1770520244217,-440.55799967,0.00017952,2]
[404768878,1770520244229,-500.0,0.00017999,2]
[404768879,1770520244239,-1774.52,0.00018661,2]
[404768880,1770520244248,-177.02396097,0.00019007,2]
[404768881,1770520244257,-200.23286085,0.00019082,2]
[404768882,1770520244267,-20157.26,0.00019178,2]
[404768883,1770520244277,-150.0,0.00019528,2]
[404768884,1770520244287,-150.0,0.00019583,2]
[404768885,1770520244297,-150.0,0.00019638,2]
[404768886,1770520244307,-220.11395296,0.00019692,2]
[404768887,1770520244316,-160.0,0.00019802,2]
[404768888,1770520244325,-10732.73906839,0.00020343,2]
[404768889,1770520244335,-153.75,0.00020365,2]
[404768890,1770520244344,-4657.83024449,0.0002065,2]
[404768891,1770520244353,-500.0,0.00021918,2]
[404768892,1770520244363,-369.17444929,0.00021918,2]
[404768893,1770520244372,-500.0,0.00021918,2]
[404768894,1770520244381,-500.0,0.00021918,2]
[404768895,1770520244391,-500.0,0.00021918,2]
[404768896,1770520244400,-500.0,0.00021918,2]
[404768897,1770520244409,-400.11,0.00022,7]
[404768898,1770520244418,-440.55799967,0.00022307,2]
[404768899,1770520244428,-270.80046435,0.0002246,2]
[404768900,1770520244437,-500.0,0.0002246,2]
[404768901,1770520244446,-340.43008438,0.0002246,2]
[404768902,1770520244455,-160.0,0.00023,2]
[404768903,1770520244464,-1000.0,0.00023008,2]
[404768904,1770520244474,-153.75,0.00023275,2]
[404768905,1770520244483,-503.28322142,0.00023556,2]
[404768906,1770520244492,-10732.73906839,0.00023716,2]
[404768907,1770520244502,-4657.83024449,0.00023979,2]
[404768908,1770520244511,-177.02396097,0.00024022,2]
[404768909,1770520244520,-190.02,0.00025,3]
[404768910,1770520244530,-153.75,0.00026184,2]
[404768911,1770520244540,-440.55799967,0.00026662,2]
[404768912,1770520244550,-10732.73906839,0.00027089,2]
[404768913,1770520244560,-3688.51,0.00027123,2]
[404768914,1770520244571,-4657.83024449,0.00027308,2]
[404768915,1770520244581,-150.0,0.00027369,2]
[404768916,1770520244592,-300.0,0.00027397,2]
[404768917,1770520244604,-160.0,0.00028,3]
[404768918,1770520244616,-313.16734478,0.0002884,2]
[404768919,1770520244626,-2465.01829214,0.0002884,2]
[404768920,1770520244636,-177.02396097,0.00029037,2]
[404768921,1770520244646,-1000.0,0.00029568,2]
[404768922,1770520244655,-152.56,0.0003,2]
[404768923,1770520244664,-152.56,0.0003,2]
[404768924,1770520244674,-152.56,0.0003,2]
[404768925,1770520244684,-152.56,0.0003,2]
[404768926,1770520244695,-152.56,0.0003,2]